bitfinex-derivatives/quotes_ETHF0:USTF0_20250910
["timestamp","ask_amount","ask_price","bid_price","bid_amount"]
[1757464308076,0.2114,4302.5,4302.1,0.3186]
[1757464308274,0.4167,4302.5,4302.4,0.7222]
[1757464308475,0.7363,4302.5,4302.4,0.7222]
[1757464309870,0.4167,4302.5,4302.4,0.7222]
[1757464311278,0.2114,4302.5,4302.4,0.7222]
[1757464311672,0.7363,4302.5,4302.4,0.3186]
[1757464311867,0.5249,4302.4,4302.3,0.5198]
[1757464312072,0.7363,4302.4,4302.3,0.5198]
[1757464312975,0.7363,4302.4,4302.3,0.7222]
[1757464314579,0.7363,4302.4,4301.9,0.00349004]
[1757464314775,0.4167,4302.4,4301.9,0.00349004]
[1757464314981,0.4167,4302.4,4302.3,0.7222]
[1757464315383,0.7363,4302.4,4302.3,0.7222]
[1757464317586,0.4484,4302.9,4302.8,0.7222]
[1757464318580,0.9733,4302.9,4302.8,0.7222]
[1757464319580,0.9733,4302.9,4302.8,0.5198]
[1757464320783,0.9733,4302.9,4302.5,0.3186]
[1757464320986,0.9733,4302.9,4302.1,0.3186]
[1757464321577,0.9733,4302.9,4302.8,0.2012]
[1757464321888,0.4167,4302.9,4302.8,0.7222]
[1757464322089,0.7363,4302.9,4302.5,0.3186]
[1757464322283,0.96871,4302.9,4302.1,0.3186]
[1757464322782,0.7363,4302.9,4302.1,0.3186]
[1757464324388,0.96872,4302.9,4302.1,0.3186]
[1757464324779,0.7363,4302.9,4302.1,0.3186]
[1757464325485,0.3196,4302.1,4301.9,0.32209004]
[1757464325679,0.3196,4302.1,4302.0,0.2012]
[1757464325882,0.7363,4302.1,4302.0,0.7222]
[1757464327385,0.1291,4302.0,4301.9,0.00349004]
[1757464327584,1.09785,4302.0,4301.9,0.00349004]
[1757464327789,4.8654,4302.0,4301.9,0.00349004]
[1757464330195,5.40929846,4302.0,4301.9,0.00349004]
[1757464333491,1.28019846,4302.0,4301.9,0.52329004]
[1757464333689,1.51719846,4302.0,4301.9,0.72569004]
[1757464334083,0.00348582,4302.4,4301.9,4.72569004]
[1757464334296,0.237,4302.3,4302.2,0.4036]
[1757464334496,0.237,4302.3,4302.2,0.7222]
[1757464334795,0.9733,4302.3,4302.2,0.7222]
[1757464336386,0.9733,4302.3,4301.9,0.00349004]
[1757464336587,0.8654,4302.0,4301.9,0.00349004]
[1757464336892,1.40588341,4302.0,4301.0,0.3186]
[1757464337191,0.3983,4301.1,4301.0,0.8587]
[1757464337396,0.5535,4301.5,4301.0,0.5401]
[1757464337599,0.7538,4301.5,4301.4,0.4218]
[1757464337787,0.4373,4301.5,4301.4,0.7376]
[1757464338088,0.9518,4301.5,4301.4,0.7376]
[1757464339699,0.9518,4301.5,4301.4,0.5284]
[1757464340094,0.9518,4301.5,4301.4,0.7376]
[1757464340291,0.3165,4301.8,4301.5,0.1183]
[1757464340496,0.4363,4301.8,4301.7,0.7376]
[1757464340992,0.20378582,4302.4,4302.3,0.7376]
[1757464341800,0.40178582,4302.4,4302.3,0.7376]
[1757464342096,0.71828582,4302.4,4302.3,0.7376]
[1757464342699,0.40178582,4302.4,4302.3,0.7376]
[1757464343304,0.00348582,4302.4,4302.3,0.7376]
[1757464344202,0.71828582,4302.4,4302.3,0.7376]
[1757464344899,0.71828582,4302.4,4302.3,0.2126]
[1757464345604,0.71828582,4302.4,4302.3,0.7376]
[1757464347107,0.20378582,4302.4,4302.3,0.7376]
[1757464347307,0.00348582,4302.4,4302.3,0.7376]
[1757464348895,0.20378582,4302.4,4302.3,0.7376]
[1757464350102,0.71828582,4302.4,4302.3,0.7376]
[1757464350308,0.71828582,4302.4,4302.3,0.2126]
[1757464350609,0.7148,4302.2,4302.1,0.5284]
[1757464351210,0.7148,4302.2,4301.5,1.79121525]
[1757464351408,0.3165,4302.1,4301.6,0.3158]
[1757464352109,0.7148,4302.1,4302.0,0.2126]
[1757464352308,0.7148,4302.1,4302.0,0.7376]
[1757464352508,0.7148,4302.1,4302.0,0.8559]
[1757464353811,0.3983,4302.1,4302.0,0.8559]
[1757464353999,0.3165,4302.3,4302.0,0.8559]
[1757464354308,0.5168,4302.3,4302.2,0.7376]
[1757464354700,0.00348582,4302.4,4302.3,0.7376]
[1757464360407,33.8235,4303.6,4302.3,0.4218]
[1757464360608,1.6171787,4303.5,4302.5,0.1183]
[1757464360806,0.3165,4303.3,4302.6,0.3158]
[1757464361010,0.7148,4303.1,4303.0,0.5284]
[1757464362016,0.7148,4303.1,4303.0,0.7376]
[1757464362409,1.25498718,4303.1,4303.0,0.7376]
[1757464362909,0.74048718,4303.1,4303.0,0.8559]
[1757464363114,0.9508,4303.5,4303.4,0.4218]
[1757464363319,1.4909969,4303.5,4303.4,0.7376]
[1757464365115,1.2549969,4303.5,4303.4,0.7376]
[1757464365316,1.4909969,4303.5,4303.4,0.7376]
[1757464367517,33.507,4303.6,4303.4,0.7376]
[1757464367717,0.7057,4304.4,4304.3,0.7117]
[1757464367918,1.48171682,4304.4,4304.3,0.7117]
[1757464368519,1.48171682,4304.4,4303.6,0.2976]
[1757464368824,0.1949,4303.7,4303.6,0.7117]
[1757464369025,0.7057,4304.4,4304.3,0.5068]
[1757464369325,1.48157027,4304.4,4304.3,0.5068]
[1757464370124,1.48157027,4304.4,4304.1,0.2976]
[1757464370318,0.7057,4304.2,4304.1,0.5068]
[1757464370526,1.24557027,4304.2,4304.1,0.5068]
[1757464372328,0.7057,4304.2,4304.1,0.7117]
[1757464372529,0.9417,4304.2,4304.1,0.7117]
[1757464380936,0.7057,4304.2,4304.1,0.7117]
[1757464381138,0.9417,4304.2,4304.1,0.7117]
[1757464384747,0.1860771,4304.7,4304.1,0.7117]
[1757464384939,0.54099888,4304.6,4304.5,0.8351]
[1757464385139,0.4309,4304.6,4304.5,0.8351]
[1757464387145,0.236,4304.6,4304.5,0.8351]
[1757464387537,33.6789,4305.0,4304.9,0.4141]
[1757464387733,34.96686472,4305.0,4304.9,0.7117]
[1757464389439,34.1156,4305.0,4304.9,0.7117]
[1757464389747,34.4257,4305.0,4304.9,0.7117]
[1757464390350,34.4257,4305.0,4304.9,0.5068]
[1757464390738,35.69716143,4305.0,4304.6,0.2976]
[1757464390946,1.14986143,4304.7,4304.6,0.2976]
[1757464391149,2.09156143,4304.7,4304.6,0.5068]
[1757464393044,0.9417,4304.7,4304.6,0.7117]
[1757464398448,2.09156143,4304.7,4304.1,0.3056]
[1757464399255,0.7057,4304.7,4304.6,0.732]
[1757464399553,0.4309,4304.7,4304.6,0.732]
[1757464400051,0.7533,4304.7,4304.6,0.732]
[1757464400953,0.4309,4304.7,4304.6,0.732]
[1757464402057,0.236,4304.7,4304.6,0.732]
[1757464402654,0.98708702,4304.7,4304.6,0.732]
[1757464405462,1.51378702,4304.7,4304.6,0.732]
[1757464408463,1.51378702,4304.7,4304.6,0.5187]
[1757464412357,0.9718,4304.7,4304.6,0.5187]
[1757464414466,1.51540424,4304.7,4304.6,0.5187]
[1757464417661,1.51540424,4304.7,4304.6,0.732]
[1757464418163,1.27940424,4304.7,4304.6,0.732]
[1757464418363,1.19300424,4304.7,4304.6,0.732]
[1757464419663,1.51540424,4304.7,4304.6,0.732]
[1757464420066,1.51540424,4304.7,4304.6,0.5187]
[1757464420569,1.51540424,4304.7,4304.4,0.3056]
[1757464420773,0.7358,4304.5,4304.4,0.3056]
[1757464420971,0.7358,4304.5,4304.4,0.5187]
[1757464426278,0.5421,4304.5,4304.1,0.3056]
[1757464426476,0.5421,4304.5,4304.0,1.79631525]
[1757464426477,0.4134,4304.1,4304.0,0.4264]
[1757464426779,0.4104,4303.6,4303.5,1.67291525]
[1757464427073,0.7146,4303.5,4303.4,0.2004]
[1757464427280,0.7146,4303.5,4303.4,0.4955]
[1757464428477,0.8318,4303.5,4303.1,0.2951]
[1757464428879,0.8318,4303.5,4302.5,1.80141525]
[1757464428880,0.7146,4302.7,4302.6,0.6905]
[1757464429075,0.7146,4302.3,4302.2,0.6905]
[1757464429480,0.4996,4302.6,4302.5,0.8119]
[1757464429680,0.1954,4302.6,4302.5,0.8119]
[1757464432587,0.236,4302.7,4302.5,0.5168]
[1757464432792,0.236,4302.7,4302.6,0.6905]
[1757464433887,0.3042,4303.9,4303.0,0.1214]
[1757464434188,33.6664,4304.0,4303.9,0.6905]
[1757464434388,33.9024,4304.0,4303.9,0.6905]
[1757464434592,34.4216,4304.0,4303.9,0.6905]
[1757464438990,34.5388,4304.0,4303.0,1.48362427]
[1757464439189,0.7146,4303.2,4303.1,0.6905]
[1757464439399,0.9506,4303.2,4303.1,0.6905]
[1757464439695,0.4314,4303.2,4303.1,0.6905]
[1757464440594,0.9506,4303.2,4303.1,0.6905]
[1757464440796,0.6464,4303.2,4303.1,0.6905]
[1757464441095,0.4314,4303.2,4303.1,0.6905]
[1757464441692,0.236,4303.2,4303.1,0.6905]
[1757464441898,0.1954,4303.9,4303.8,0.6905]
[1757464442098,0.4314,4303.9,4303.8,0.6905]
[1757464446001,0.7356,4303.9,4303.8,0.6905]
[1757464446303,0.9506,4303.9,4303.8,0.6905]
[1757464448702,0.6464,4303.9,4303.8,0.6905]
[1757464448902,0.9506,4303.9,4303.8,0.6905]
[1757464450494,0.9506,4303.9,4302.8,2.16841525]
[1757464450495,0.7146,4302.9,4302.8,2.16841525]
[1757464450699,0.9506,4302.9,4302.8,0.4955]
[1757464451304,0.9506,4302.9,4302.8,0.6905]
[1757464451506,0.236,4302.9,4302.8,0.6905]
[1757464451800,0.4314,4302.9,4302.8,0.6905]
[1757464452005,0.9506,4302.9,4302.8,0.6905]
[1757464452203,0.9506,4302.9,4302.8,0.4955]
[1757464452598,0.9506,4302.9,4302.4,0.29858582]
[1757464452799,0.8318,4302.5,4302.4,0.00348582]
[1757464453800,4.8318,4302.5,4302.4,0.00348582]
[1757464454501,0.6168,4302.5,4302.4,0.49898582]
[1757464454695,0.236,4302.5,4302.4,0.69398582]
[1757464456401,0.4314,4302.5,4302.4,0.69398582]
[1757464457207,0.9382,4302.5,4302.4,0.69398582]
[1757464460610,1.0636,4302.5,4302.4,0.00348582]
[1757464460813,0.6879,4301.5,4301.4,0.7247]
[1757464461210,0.3961,4301.5,4301.4,0.7247]
[1757464461412,0.236,4301.7,4301.5,0.4247]
[1757464461618,0.4316,4301.7,4301.6,0.7247]
[1757464462111,0.9239,4301.7,4301.1,0.3068]
[1757464463314,2.28612427,4301.7,4301.1,0.3068]
[1757464464920,0.9239,4301.7,4301.1,0.3068]
[1757464467218,0.6879,4300.7,4300.6,0.7247]
[1757464467421,0.6879,4300.7,4299.5,1.48012427]
[1757464467422,0.9239,4300.7,4300.1,0.3068]
[1757464468214,0.9239,4300.7,4300.6,0.2088]
[1757464468417,0.9239,4300.7,4300.6,0.7247]
[1757464469514,0.2918,4301.4,4301.3,0.4179]
[1757464469820,0.4316,4301.4,4301.3,0.7247]
[1757464470019,0.9239,4301.4,4301.3,0.7247]
[1757464484722,0.9239,4301.4,4301.3,0.2088]
[1757464485325,0.9239,4301.4,4301.1,0.3068]
[1757464485519,0.9239,4301.4,4301.0,0.1179]
[1757464487024,0.6321,4301.4,4301.3,0.2128]
[1757464487319,0.9436,4301.4,4301.3,0.5222]
[1757464488235,1.06589693,4301.4,4301.3,0.5222]
[1757464488534,2.21736776,4301.4,4301.3,0.5222]
[1757464489923,2.21736776,4301.4,4300.6,0.3094]
[1757464490235,0.85129693,4301.3,4301.2,0.5222]
[1757464492532,1.40086845,4301.3,4301.2,0.5222]
[1757464496233,1.40086845,4301.3,4301.2,0.7214]
[1757464497137,1.401154,4301.3,4301.2,0.7214]
[1757464502634,1.089654,4301.3,4301.2,0.7214]
[1757464503137,1.401154,4301.3,4301.2,0.7214]
[1757464506640,0.672154,4301.3,4301.2,0.7214]
[1757464507344,0.12258248,4301.3,4301.2,4.95389]
[1757464507544,34.0192,4302.2,4302.1,0.412]
[1757464507849,35.01193024,4302.2,4302.1,0.7214]
[1757464508340,34.462,4302.2,4302.1,0.7214]
[1757464508537,35.01147046,4302.2,4301.5,0.1219]
[1757464508736,0.4175,4301.4,4301.1,1.67457039]
[1757464508931,0.4175,4300.9,4300.7,0.3094]
[1757464509141,0.965,4300.8,4300.7,0.5222]
[1757464509645,0.965,4300.8,4300.7,0.7214]
[1757464510444,0.965,4300.8,4300.7,1.00758349]
[1757464510851,0.965,4300.8,4300.7,0.28618349]
[1757464511451,0.965,4300.8,4300.4,1.67457039]
[1757464511646,1.69107083,4300.5,4300.3,1.67457039]
[1757464511847,0.8511,4300.0,4299.9,1.67457039]
[1757464512048,2.23857083,4300.0,4299.7,0.3094]
[1757464512655,2.23857083,4300.0,4299.5,0.1219]
[1757464512854,0.729,4299.9,4299.8,0.5222]
[1757464515052,0.236,4300.0,4299.8,0.7214]
[1757464515254,0.236,4300.0,4299.9,0.3094]
[1757464515458,0.236,4300.0,4299.9,0.7214]
[1757464515659,0.236,4300.0,4299.9,1.01486814]
[1757464515861,0.00348582,4300.3,4300.2,0.7214]
[1757464516053,0.18948582,4300.3,4300.2,1.01486814]
[1757464517059,0.00348582,4300.3,4300.2,6.16633897]
[1757464517448,0.00348582,4300.3,4300.2,6.39887897]
[1757464517654,0.20298582,4300.3,4300.2,1.01486814]
[1757464518158,0.71588582,4300.3,4300.2,1.01486814]
[1757464519355,0.71588582,4300.3,4300.2,0.50626814]
[1757464519554,0.71588582,4300.3,4300.2,0.29346814]
[1757464519853,0.00348582,4300.3,4300.2,1.01876814]
[1757464521550,0.00348582,4300.3,4300.2,5.01876814]
[1757464524365,1.86387083,4301.9,4301.8,0.5107]
[1757464524557,2.5394899,4301.9,4301.8,0.2016]
[1757464524756,2.5394899,4301.9,4301.1,0.3091]
[1757464524963,0.2011,4301.3,4301.2,0.60247095]
[1757464525162,0.82890092,4301.3,4301.2,0.80407095]
[1757464525364,1.98037175,4301.3,4301.2,0.29337095]
[1757464526063,1.98037175,4301.3,4301.2,0.80407095]
[1757464526266,0.51710092,4301.3,4301.2,1.01867095]
[1757464526470,1.66277083,4301.6,4301.5,0.5358]
[1757464526664,1.77926998,4301.6,4301.5,1.13827095]
[1757464526971,1.98036998,4301.6,4301.5,0.49497095]
[1757464527562,1.98036998,4301.6,4301.5,0.29337095]
[1757464528166,1.24570547,4302.8,4302.1,0.7253]
[1757464528167,34.0083,4302.2,4302.1,0.7253]
[1757464528363,34.56188161,4302.2,4302.1,1.01867095]
[1757464528762,34.4454,4302.2,4302.1,1.01867095]
[1757464529572,34.4454,4302.2,4302.1,0.29337095]
[1757464529876,35.59687083,4302.2,4302.1,0.29337095]
[1757464530468,39.59687083,4302.2,4301.3,0.3091]
[1757464530667,39.59687083,4302.2,4301.3,0.5107]
[1757464530668,0.4006,4301.4,4301.3,0.5107]
[1757464530872,0.4006,4301.4,4301.3,0.7253]
[1757464531171,0.6326,4301.4,4301.3,0.5107]
[1757464531572,0.4006,4301.4,4301.3,0.7253]
[1757464531767,1.55207083,4301.4,4301.0,0.1196]
[1757464531968,1.78407083,4301.2,4301.1,0.3091]
[1757464532369,1.78407083,4301.2,4301.1,0.5107]
[1757464533569,1.55207083,4301.8,4301.7,0.2016]
[1757464533873,1.78807083,4301.8,4301.7,0.5107]
[1757464534178,1.78807083,4301.8,4301.7,0.7253]
[1757464534375,0.4355,4301.8,4301.7,0.7253]
[1757464534674,1.15147083,4302.1,4302.0,0.1196]
[1757464534874,1.78807083,4302.1,4302.0,0.6303]
[1757464535076,1.78807083,4302.1,4302.0,0.8449]
[1757464535376,0.4355,4302.1,4302.0,0.8449]
[1757464535577,0.6366,4302.1,4302.0,0.8449]
[1757464535873,1.78807083,4302.1,4302.0,0.8449]
[1757464537370,2.02007083,4302.1,4302.0,0.8449]
[1757464539174,1.78807083,4302.1,4302.0,0.8449]
[1757464539474,2.02007083,4302.1,4302.0,0.4287]
[1757464539680,2.02007083,4302.1,4302.0,0.3091]
[1757464541381,2.02007083,4302.1,4302.0,0.5107]
[1757464541567,2.02007083,4302.1,4302.0,0.6303]
[1757464542178,2.02007083,4302.1,4302.0,0.3091]
[1757464542380,0.6326,4301.6,4301.5,0.3212]
[1757464542680,0.6326,4301.6,4301.5,0.61011183]
[1757464542681,0.8686,4301.6,4301.5,0.61011183]
[1757464542878,0.8686,4301.6,4301.5,0.40851183]
[1757464543079,0.8686,4301.6,4301.5,0.59801183]
[1757464543682,0.8686,4301.6,4301.5,0.79961183]
[1757464543883,0.8686,4301.6,4301.5,0.91921183]
[1757464544081,0.6366,4301.6,4301.5,0.91921183]
[1757464544505,0.6366,4301.6,4301.5,1.13381183]
[1757464544506,0.236,4301.6,4301.5,1.13381183]
[1757464544777,0.4006,4302.1,4302.0,0.8449]
[1757464544983,33.497,4302.2,4302.0,0.82471183]
[1757464545176,33.497,4302.2,4302.1,1.01421183]
[1757464545381,33.733,4302.2,4302.1,1.01421183]
[1757464546282,1.15147083,4302.9,4302.5,0.1196]
[1757464546491,1.55207083,4302.9,4302.8,0.5107]
[1757464546679,2.0995847,4302.9,4302.8,0.5107]
[1757464546874,2.3355847,4302.9,4302.8,0.5107]
[1757464547286,2.5671847,4302.9,4302.8,0.5107]
[1757464548785,0.23575708,4304.0,4302.8,0.99592999]
[1757464548786,0.2316,4303.7,4302.8,0.99592999]
[1757464549092,0.5972,4303.6,4303.5,0.8313]
[1757464549387,0.5972,4303.6,4303.5,1.11832999]
[1757464549586,1.15147083,4303.8,4303.5,1.11821032]
[1757464549788,1.35367083,4304.1,4304.0,0.8313]
[1757464550087,2.34030591,4304.1,4304.0,1.11820479]
[1757464550282,0.8728,4304.1,4304.0,0.92000479]
[1757464551186,0.8728,4304.1,4304.0,0.6331]
[1757464551587,0.8728,4304.1,4304.0,0.9197534]
[1757464552087,0.6412,4304.1,4304.0,0.9197534]
[1757464552292,0.6412,4304.1,4304.0,1.11786249]
[1757464552888,34.85291411,4304.3,4304.1,0.3]
[1757464552889,33.491,4304.3,4304.1,0.3]
[1757464553088,33.491,4304.3,4304.2,0.7119]
[1757464553289,33.727,4304.3,4304.2,0.7119]
[1757464554188,33.491,4304.3,4304.2,0.7119]
[1757464554387,33.727,4304.3,4304.2,0.7119]
[1757464554587,33.727,4304.3,4304.2,0.99826517]
[1757464554893,0.4052,4305.1,4305.0,0.3176]
[1757464555196,0.6412,4305.1,4305.0,0.5313]
[1757464555493,0.6412,4305.1,4305.0,0.8313]
[1757464556191,0.8728,4305.1,4305.0,0.8313]
[1757464558797,0.4052,4304.6,4304.5,0.4194]
[1757464559089,0.6368,4304.1,4304.0,0.3]
[1757464559285,0.6412,4304.1,4304.0,1.11705383]
[1757464559500,0.236,4304.1,4304.0,1.11705383]
[1757464559687,1.76711411,4304.6,4304.5,0.3331]
[1757464559893,2.00311411,4304.6,4304.5,0.6331]
[1757464560393,2.23471411,4304.6,4304.5,0.6331]
[1757464562087,2.23471411,4304.6,4304.1,0.3]
[1757464562289,2.23471411,4304.6,4304.0,0.5313]
[1757464562290,0.4052,4304.1,4304.0,0.5313]
[1757464562588,0.4052,4304.1,4304.0,0.91871704]
[1757464562887,0.6368,4304.1,4304.0,0.58561704]
[1757464563085,0.6368,4304.1,4304.0,0.3]
[1757464563280,0.6368,4304.1,4304.0,0.6331]
[1757464563787,0.4052,4304.1,4304.0,0.6331]
[1757464564487,0.4052,4304.1,4304.0,0.8313]
[1757464564790,1.36191411,4304.6,4304.5,0.3331]
[1757464564791,0.4052,4304.6,4304.5,0.3331]
[1757464564991,0.8728,4304.6,4304.5,0.3331]
[1757464565194,0.8728,4304.6,4304.5,0.6331]
[1757464566796,0.6412,4304.6,4304.5,0.8313]
[1757464567096,0.236,4304.6,4304.5,0.8313]
[1757464567295,1.36191411,4304.9,4304.5,0.5313]
[1757464567601,0.4382,4304.8,4304.7,0.7119]
[1757464568088,1.36191411,4305.3,4304.7,0.7119]
[1757464568289,0.2022,4305.1,4305.0,0.1194]
[1757464568491,0.2022,4305.1,4305.0,0.5313]
[1757464568999,0.2022,4305.1,4305.0,0.6331]
[1757464569000,0.6368,4305.1,4305.0,0.6331]
[1757464569389,0.4052,4305.1,4305.0,0.8313]
[1757464569695,0.2022,4305.3,4305.2,0.7119]
[1757464569892,0.4382,4305.3,4305.2,0.7119]
[1757464570293,0.6412,4305.3,4305.2,0.7119]
[1757464571089,0.2022,4305.3,4305.2,0.7119]
[1757464571288,0.4382,4305.3,4305.2,0.7119]
[1757464571598,0.4052,4305.6,4305.5,0.8313]
[1757464571892,0.6412,4305.6,4305.5,0.8313]
[1757464572096,0.8728,4305.6,4305.5,0.6331]
[1757464575192,1.41926245,4305.6,4305.5,0.6331]
[1757464577503,33.485,4305.7,4305.5,0.5313]
[1757464577702,0.236,4305.6,4305.5,0.8311]
[1757464577893,33.485,4305.7,4305.6,0.2998]
[1757464578089,33.721,4305.7,4305.6,0.7034]
[1757464579001,33.9328,4305.7,4305.6,0.7034]
[1757464579196,34.48063275,4305.7,4305.6,0.99185355]
[1757464579504,33.9328,4305.7,4305.6,0.99185355]
[1757464580393,33.485,4305.7,4305.6,0.99185355]
[1757464580597,33.721,4305.7,4305.6,0.99185355]
[1757464581600,33.721,4305.7,4305.6,0.9918953]
[1757464582595,34.26878144,4305.7,4305.6,0.9918953]
[1757464583797,0.78378144,4305.7,4305.6,0.9918953]
[1757464584796,0.99558144,4305.7,4305.6,0.9918953]
[1757464585200,0.75958144,4305.7,4305.6,0.9918953]
[1757464585400,0.99558144,4305.7,4305.6,0.9918953]
[1757464587403,1.20878144,4305.7,4305.6,0.9918953]
[1757464587705,1.44048144,4305.7,4305.6,0.7846953]
[1757464590902,1.20878144,4305.7,4305.6,0.9918953]
[1757464591904,0.78378144,4305.7,4305.6,0.9918953]
[1757464592110,0.236,4305.7,4305.6,0.9918953]
[1757464594210,0.236,4305.8,4305.7,0.2998]
[1757464594405,0.236,4305.8,4305.7,0.9918953]
[1757464594602,0.4435,4306.5,4306.4,0.1964]
[1757464594904,0.236,4306.5,4306.4,0.9918953]
[1757464595213,0.4478,4306.5,4306.4,0.9918953]
[1757464596310,0.2317,4306.9,4306.4,0.9918953]
[1757464596508,0.4468,4306.8,4306.7,0.7034]
[1757464596810,0.4468,4306.8,4306.7,0.9918953]
[1757464597009,0.66,4306.8,4306.7,0.9918953]
[1757464610321,1.80863227,4306.8,4306.7,0.9918953]
[1757464610521,1.80863227,4306.8,4306.7,0.99196637]
[1757464610821,0.66,4306.8,4306.7,0.99196637]
[1757464611017,1.80863227,4306.8,4306.7,0.99196637]
[1757464615924,0.66,4306.8,4306.7,0.99196637]
[1757464616121,1.80863227,4306.8,4306.7,0.99196637]
[1757464619635,0.66,4306.8,4306.7,0.99196637]
[1757464621137,0.2118,4306.8,4306.7,0.99196637]
[1757464621343,33.6701,4307.1,4307.0,0.8354]
[1757464621639,34.21898831,4307.1,4307.0,0.8354]
[1757464621942,34.24988831,4307.1,4307.0,1.1243515]
[1757464622537,0.2041,4307.6,4307.5,0.1176]
[1757464622735,0.6529,4307.6,4307.5,0.8072515]
[1757464622942,1.20210029,4307.6,4307.5,0.8072515]
[1757464623140,1.20210029,4307.6,4307.5,1.1243515]
[1757464624337,0.98830029,4307.6,4307.5,1.1243515]
[1757464625039,0.75330029,4307.6,4307.5,1.1243515]
[1757464625245,0.98830029,4307.6,4307.5,1.1243515]
[1757464625849,0.54920029,4307.6,4307.5,1.1243515]
[1757464626049,0.2316,4308.1,4307.5,1.1243515]
[1757464626347,0.4179,4308.1,4308.0,0.8354]
[1757464626543,1.20173696,4308.1,4308.0,1.1243515]
[1757464628240,1.43333696,4308.1,4308.0,1.1243515]
[1757464628447,1.66545697,4308.1,4308.0,0.2889515]
[1757464628842,1.43333696,4308.1,4308.0,0.2889515]
[1757464631346,5.66545697,4308.1,4307.0,0.1176]
[1757464631649,0.7069,4307.2,4307.1,0.31662616]
[1757464631950,0.9419,4307.2,4307.1,0.31662616]
[1757464632356,0.9419,4307.2,4307.1,0.28847765]
[1757464632553,1.48990409,4307.2,4307.1,0.28847765]
[1757464632754,2.63853636,4307.2,4307.1,0.28847765]
[1757464633052,6.87070636,4307.2,4306.0,0.1176]
[1757464633353,0.7069,4306.4,4306.0,0.1176]
[1757464633549,1.48990409,4306.4,4306.3,0.32058582]
[1757464634248,1.48990409,4306.4,4306.3,0.00348582]
[1757464634454,1.48990409,4306.4,4306.3,0.32058582]
[1757464634958,1.48990409,4306.4,4306.3,0.00348582]
[1757464635853,1.48990409,4306.4,4306.3,0.52588582]
[1757464636047,2.63853636,4306.4,4306.3,0.52588582]
[1757464636652,2.34953636,4306.4,4306.3,0.72128582]
[1757464636850,0.54800409,4306.4,4306.3,5.86991809]
[1757464637155,0.235,4306.4,4306.3,5.86991809]
[1757464637352,0.235,4306.4,4306.3,6.10213809]
[1757464637754,0.235,4306.4,4306.3,4.72128582]
[1757464640051,1.14863227,4306.9,4306.3,4.72128582]
[1757464640351,0.78275385,4306.8,4306.7,0.1982]
[1757464640556,0.78275385,4306.8,4306.7,0.7004]
[1757464641150,0.99525385,4306.8,4306.7,0.7004]
[1757464642557,0.4475,4306.8,4306.7,0.7004]
[1757464642950,0.6536,4306.8,4306.7,0.7004]
[1757464643250,0.9427,4306.8,4306.7,0.7004]
[1757464643451,0.9427,4306.8,4306.7,0.4901]
[1757464645053,0.6536,4306.8,4306.7,0.7004]
[1757464645256,1.14863227,4307.2,4306.7,0.7004]
[1757464645455,0.2891,4307.9,4307.2,0.2919]
[1757464645756,1.56723227,4307.7,4307.6,0.4901]
[1757464645956,2.40415323,4307.7,4307.6,0.4901]
[1757464646453,34.78990547,4308.5,4307.6,0.7004]
[1757464646454,1.14863227,4308.0,4307.6,0.7004]
[1757464646658,0.4475,4307.7,4307.6,0.7004]
[1757464647446,1.59613227,4307.7,4307.6,0.7004]
[1757464647655,1.80223227,4307.7,4307.6,0.7004]
[1757464647852,2.09133227,4307.7,4307.6,0.2919]
[1757464648256,0.4186,4306.7,4306.6,0.4901]
[1757464648456,0.7969,4306.5,4306.1,0.2919]
[1757464648650,0.7969,4306.5,4305.8,0.2919]
[1757464648958,0.7969,4306.5,4305.5,0.1276]
[1757464648959,0.7077,4306.4,4306.3,0.29538582]
[1757464649158,0.7077,4306.4,4306.3,0.49358582]
[1757464649960,4.7077,4306.4,4305.6,0.2919]
[1757464650158,1.85283227,4305.7,4305.6,0.2919]
[1757464650363,2.08783227,4305.7,4305.6,0.4901]
[1757464651249,2.08783227,4305.7,4305.6,0.2919]
[1757464651659,2.08783227,4305.7,4305.6,0.4901]
[1757464652657,1.80223227,4305.7,4305.6,0.7004]
[1757464653158,0.2856,4306.7,4305.7,0.2919]
[1757464653362,1.56723227,4306.5,4306.4,0.4901]
[1757464653562,2.400074,4306.5,4306.4,0.4901]
[1757464654163,1.85283227,4306.5,4306.4,0.4901]
[1757464655064,1.56723227,4306.5,4306.4,0.7004]
[1757464655267,0.6536,4306.5,4306.4,0.7004]
[1757464655967,33.45648582,4306.8,4306.5,0.4195]
[1757464656264,33.69148582,4306.8,4306.7,0.7004]
[1757464656455,0.23848582,4306.8,4306.7,0.7004]
[1757464658361,0.94268582,4306.8,4306.0,0.1276]
[1757464658566,0.94268582,4306.8,4306.1,0.2919]
[1757464662959,0.65708582,4306.8,4305.7,0.2919]
[1757464663264,0.2125,4305.8,4305.7,0.7004]
[1757464664262,0.2856,4306.5,4305.7,0.7004]
[1757464664463,0.2856,4306.5,4305.8,0.2919]
[1757464664666,0.2125,4305.9,4305.8,0.7004]
[1757464665566,0.4186,4305.9,4305.8,0.7004]
[1757464668967,0.4186,4305.9,4305.8,0.6878]
[1757464669968,0.1107,4305.5,4305.4,1.67011554]
[1757464670169,34.2126,4305.5,4304.4,4.99178341]
[1757464670366,34.2126,4305.5,4303.5,0.4374]
[1757464670367,3.93467964,4304.6,4303.5,0.4374]
[1757464670669,3.93467964,4303.9,4303.5,0.4374]
[1757464670868,0.80083526,4303.8,4303.5,0.4374]
[1757464671068,0.239,4303.8,4303.5,0.4374]
[1757464672364,0.20823654,4303.7,4303.5,0.4374]
[1757464672565,0.20823654,4303.6,4303.5,0.4374]
[1757464672976,0.239,4303.8,4303.5,0.4374]
[1757464673269,0.239,4303.8,4303.6,0.313]
[1757464675776,0.239,4303.8,4303.5,0.1244]
[1757464675973,0.239,4303.8,4303.5,0.3186]
[1757464676174,0.239,4303.8,4303.6,0.313]